fUSD/lending_fUSD_20240618
["ID","MTS","AMOUNT","RATE_DAILY","PERIOD"]
[329804224,1718682662695,-500.0,0.00022191,3]
[329804225,1718682662704,-866.27,0.00022191,3]
[329804226,1718682662719,-500.0,0.00022191,3]
[329804227,1718682662728,-583.88,0.00022191,3]
[329804228,1718682662737,-500.0,0.00022191,3]
[329804229,1718682662746,-500.0,0.00022191,3]
[329804230,1718682662755,-658.8,0.00022191,3]
[329804231,1718682662764,-500.0,0.00022191,3]
[329804232,1718682662773,-500.0,0.00022191,3]
[329804233,1718682662783,-500.0,0.00022191,3]
[329804234,1718682662792,-884.98,0.00022191,3]
[329804235,1718682662801,-500.0,0.00022191,3]
[329804236,1718682662810,-500.0,0.00022191,3]
[329804237,1718682662820,-500.0,0.00022191,3]
[329804238,1718682662829,-500.0,0.00022191,3]
[329804239,1718682662839,-1865.89,0.00022191,3]
[329804240,1718682662848,-500.0,0.00022191,3]
[329804241,1718682662858,-500.0,0.00022191,3]
[329804242,1718682662867,-1095.88,0.00022191,3]
[329804243,1718682662877,-500.0,0.00022191,3]
[329804244,1718682662887,-974.31,0.00022191,3]
[329804245,1718682662896,-500.0,0.00022191,3]
[329804246,1718682662905,-500.0,0.00022191,3]
[329804247,1718682662915,-500.0,0.00022191,3]
[329804248,1718682662925,-693.14,0.00022191,3]
[329804249,1718682662934,-500.0,0.00022191,3]
[329804250,1718682662947,-500.0,0.00022191,3]
[329804251,1718682662965,-500.0,0.00022191,3]
[329804252,1718682662973,-500.0,0.00022191,3]
[329804253,1718682662983,-500.0,0.00022191,3]
[329804254,1718682662991,-500.0,0.00022191,3]
[329804255,1718682663000,-500.0,0.00022191,3]
[329804256,1718682663009,-500.0,0.00022191,3]
[329804257,1718682663019,-788.79,0.00022191,3]
[329804258,1718682663028,-519.96857863,0.00022191,3]
[329804259,1718682663037,-516.38,0.00022191,3]
[329804260,1718682663046,-500.0,0.00022191,3]
[329804261,1718682663055,-500.0,0.00022191,3]
[329804262,1718682663065,-594.61276369,0.00022191,3]
[329804263,1718682663074,-1338.3,0.00022191,3]
[329804264,1718682663083,-915.98,0.00022191,3]
[329804265,1718682663093,-811.62,0.00022191,3]
[329804266,1718682663102,-977.1,0.00022191,3]
[329804267,1718682663112,-500.0,0.00022191,3]
[329804268,1718682663122,-500.0,0.00022191,3]
[329804269,1718682663131,-500.0,0.00022191,3]
[329804270,1718682663141,-531.91984265,0.00022191,3]
[329804271,1718682663150,-909.19,0.00022191,3]
[329804272,1718682663159,-500.0,0.00022191,3]
[329804273,1718682663169,-500.0,0.00022191,3]
[329804274,1718682663178,-893.66,0.00022191,3]
[329804275,1718682663188,-500.0,0.00022191,3]
[329804276,1718682663197,-500.0,0.00022191,3]
[329804277,1718682663208,-500.0,0.00022191,3]
[329804278,1718682663428,-500.0,0.00022191,3]
[329804279,1718682663437,-1494.28,0.00022191,3]
[329804280,1718682663447,-500.0,0.00022191,3]
[329804281,1718682663456,-500.0,0.00022191,3]
[329804282,1718682663470,-500.0,0.00022191,3]
[329804283,1718682663479,-169.724171,0.00022191,7]
[329804284,1718682663488,-500.0,0.00022191,3]
[329804285,1718682663498,-500.0,0.00022191,3]
[329804286,1718682663507,-577.49,0.00022191,3]
[329804287,1718682663516,-500.0,0.00022191,3]
[329804288,1718682663526,-169.724171,0.00022191,7]
[329804289,1718682663535,-500.0,0.00022191,3]
[329804290,1718682663544,-1478.42,0.00022191,3]
[329804291,1718682663553,-169.724171,0.00022191,7]
[329804292,1718682663562,-169.724171,0.00022191,7]
[329804293,1718682663571,-505.9445111,0.00022191,3]
[329804294,1718682663581,-169.724171,0.00022191,7]
[329804295,1718682663591,-500.0,0.00022191,3]
[329804296,1718682663600,-500.0,0.00022191,3]
[329804297,1718682663609,-630.69,0.00022191,3]
[329804298,1718682663618,-648.30325515,0.00022191,3]
[329804299,1718682663628,-1042.44,0.00022191,3]
[329804300,1718682663637,-500.0,0.00022191,3]
[329804301,1718682663646,-500.0,0.00022191,3]
[329804302,1718682663656,-500.0,0.00022191,3]
[329804303,1718682663666,-538.63,0.00022191,3]
[329804304,1718682663675,-798.79,0.00022191,3]
[329804305,1718682663685,-500.0,0.00022191,3]
[329804306,1718682663694,-500.0,0.00022191,3]
[329804307,1718682663704,-11323.23,0.00022191,3]
[329804308,1718682663716,-500.0,0.00022191,3]
[329804309,1718682663724,-570.99771004,0.00022191,3]
[329804310,1718682663734,-500.0,0.00022191,3]
[329804311,1718682663743,-500.0,0.00022191,3]
[329804312,1718682663752,-541.1,0.00022191,3]
[329804313,1718682663761,-500.0,0.00022191,3]
[329804314,1718682663770,-500.0,0.00022191,3]
[329804315,1718682663779,-1321.82,0.00022191,3]
[329804316,1718682663788,-500.0,0.00022191,3]
[329804317,1718682663798,-500.0,0.00022191,3]
[329804318,1718682663807,-19171.36,0.00022191,3]
[329804319,1718682663816,-500.0,0.00022191,3]
[329804320,1718682663826,-500.0,0.00022191,3]
[329804321,1718682663835,-500.0,0.00022191,3]
[329804322,1718682663844,-559.88740769,0.00022191,3]
[329804323,1718682663853,-623.71,0.00022191,3]
[329804324,1718682663862,-500.0,0.00022191,3]
[329804325,1718682663872,-531.03206185,0.00022191,3]
[329804326,1718682663881,-500.0,0.00022191,3]
[329804327,1718682663890,-6176.04,0.00022191,3]
[329804328,1718682663899,-500.0,0.00022191,3]
[329804329,1718682663908,-500.0,0.00022191,3]
[329804330,1718682663917,-4651.95,0.00022191,3]
[329804331,1718682663929,-500.0,0.00022191,3]
[329804332,1718682663938,-500.0,0.00022191,3]
[329804333,1718682663947,-500.0,0.00022191,3]
[329804334,1718682663956,-649.48,0.00022191,3]
[329804335,1718682663971,-500.0,0.00022191,3]
[329804336,1718682663980,-753.0,0.00022191,3]
[329804337,1718682663989,-500.0,0.00022191,3]
[329804338,1718682663998,-500.0,0.00022191,3]
[329804339,1718682664008,-500.0,0.00022191,3]
[329804340,1718682664017,-500.0,0.00022191,3]
[329804341,1718682664026,-500.0,0.00022191,3]
[329804342,1718682664035,-500.0,0.00022191,3]
[329804343,1718682664044,-1080.8,0.00022191,3]
[329804344,1718682664053,-2380.03,0.00022191,3]
[329804345,1718682664062,-151.0,0.00022191,7]
[329804346,1718682664071,-151.0,0.00022191,7]
[329804347,1718682664080,-151.0,0.00022191,7]
[329804348,1718682664089,-151.0,0.00022191,7]
[329804349,1718682664098,-500.0,0.00022191,3]
[329804350,1718682664108,-1644.32,0.00022191,3]
[329804351,1718682664117,-500.0,0.00022191,3]
[329804352,1718682664127,-1613.96,0.00022191,3]
[329804353,1718682664137,-151.0,0.00022191,7]
[329804354,1718682664146,-500.0,0.00022191,3]
[329804355,1718682664155,-1256.49,0.00022191,3]
[329804356,1718682664164,-500.0,0.00022191,3]
[329804357,1718682664173,-545.32240048,0.00022191,3]
[329804358,1718682664183,-25687.78,0.00022191,3]
[329804359,1718682664192,-500.0,0.00022191,3]
[329804360,1718682664203,-500.0,0.00022191,3]
[329804361,1718682664216,-38761.72,0.00022191,3]
[329804362,1718682664225,-500.0,0.00022191,3]
[329804363,1718682664235,-500.0,0.00022191,3]
[329804364,1718682664244,-500.0,0.00022191,3]
[329804365,1718682664254,-1040.74,0.00022191,3]
[329804366,1718682664264,-500.0,0.00022191,3]
[329804367,1718682664274,-500.05,0.00022191,3]
[329804368,1718682664284,-500.0,0.00022191,3]
[329804369,1718682664297,-500.0,0.00022191,3]
[329804370,1718682664309,-500.0,0.00022191,3]
[329804371,1718682664319,-932.04,0.00022191,3]
[329804372,1718682664330,-2212.99,0.00022191,3]
[329804373,1718682664344,-500.0,0.00022191,3]
[329804374,1718682664354,-500.0,0.00022191,3]
[329804375,1718682664364,-500.0,0.00022191,3]
[329804376,1718682664374,-812.87,0.00022191,3]
[329804377,1718682664383,-2622.5,0.00022191,3]
[329804378,1718682664396,-697.31,0.00022191,3]
[329804379,1718682664406,-500.0,0.00022191,3]
[329804380,1718682664416,-879.83,0.00022191,3]
[329804381,1718682664425,-500.0,0.00022191,3]
[329804382,1718682664436,-226.5311887,0.00022191,3]
[329804383,1718682664445,-565.89987425,0.00022191,3]
[329804384,1718682664455,-3759.26,0.00022191,3]
[329804385,1718682664468,-501.24,0.00022191,3]
[329804386,1718682664478,-500.0,0.00022191,3]
[329804387,1718682664487,-1019.56,0.00022191,3]
[329804388,1718682664497,-500.0,0.00022191,3]
[329804389,1718682664506,-324.71030631,0.00022191,3]
[329804390,1718682664515,-500.0,0.00022191,3]
[329804391,1718682664524,-959.63,0.00022191,3]
[329804392,1718682664534,-1137.23,0.00022191,3]
[329804393,1718682664543,-500.0,0.00022191,3]
[329804394,1718682664552,-1033.0,0.00022191,3]
[329804395,1718682664561,-3323.53,0.00022191,3]
[329804396,1718682664570,-2084.63,0.00022191,3]
[329804397,1718682664580,-597.03,0.00022191,3]
[329804398,1718682664589,-500.0,0.00022191,3]
[329804399,1718682664598,-500.0,0.00022191,3]
[329804400,1718682664608,-500.0,0.00022191,3]
[329804401,1718682664617,-515.08209713,0.00022191,3]
[329804402,1718682664626,-592.9457297,0.00022191,3]
[329804403,1718682664635,-388.23145716,0.00022191,3]
[329804404,1718682664644,-1240.2,0.00022191,3]
[329804405,1718682664654,-500.0,0.00022191,3]
[329804406,1718682664663,-500.0,0.00022191,3]
[329804407,1718682664673,-515.72086164,0.00022191,3]
[329804408,1718682664682,-955.07,0.00022191,3]
[329804409,1718682664691,-500.0,0.00022191,3]
[329804410,1718682664700,-1251.63,0.00022191,3]
[329804411,1718682664711,-25567.35,0.00022191,3]
[329804412,1718682664721,-4307.56,0.00022191,3]
[329804413,1718682664730,-1281.09,0.00022191,3]
[329804414,1718682664739,-515.41945082,0.00022191,3]
[329804415,1718682664749,-5933.06,0.00022191,3]
[329804416,1718682664758,-500.0,0.00022191,3]
[329804417,1718682664767,-500.0,0.00022191,3]
[329804418,1718682664776,-25423.61,0.00022191,3]
[329804419,1718682664785,-500.0,0.00022191,3]
[329804420,1718682664795,-1098.33,0.00022191,3]
[329804421,1718682664804,-5504.91,0.00022191,3]
[329804422,1718682664814,-500.0,0.00022191,3]
[329804423,1718682664824,-500.0,0.00022191,3]
[329804424,1718682664833,-981.69,0.00022191,3]
[329804425,1718682664842,-500.0,0.00022191,3]
[329804426,1718682664851,-524.04510867,0.00022191,3]
[329804427,1718682664860,-325.68037023,0.00022191,3]
[329804428,1718682664870,-1385.88,0.00022191,3]
[329804429,1718682664879,-151.0,0.00022191,7]
[329804430,1718682664890,-500.0,0.00022191,3]
[329804431,1718682664902,-728.68,0.00022191,3]
[329804432,1718682664912,-2883.4,0.00022191,3]
[329804433,1718682664922,-500.0,0.00022191,3]
[329804434,1718682664931,-500.0,0.00022191,3]
[329804435,1718682664941,-500.0,0.00022191,3]
[329804436,1718682664951,-500.0,0.00022191,3]
[329804437,1718682664963,-500.0,0.00022191,3]
[329804438,1718682664973,-1718.08,0.00022191,3]
[329804439,1718682664983,-151.0,0.00022191,7]
[329804440,1718682664992,-500.0,0.00022191,3]
[329804441,1718682665002,-151.0,0.00022191,7]
[329804442,1718682665011,-500.0,0.00022191,3]
[329804443,1718682665021,-151.0,0.00022191,7]
[329804444,1718682665030,-971.24,0.00022191,3]
[329804445,1718682665040,-151.0,0.00022191,7]
[329804446,1718682665049,-151.0,0.00022191,7]
[329804447,1718682665058,-735.1,0.00022191,3]
[329804448,1718682665068,-915.66,0.00022191,3]
[329804449,1718682665077,-5219.52,0.00022191,3]
[329804450,1718682665087,-680.96,0.00022191,3]
[329804451,1718682665096,-500.0,0.00022191,3]
[329804452,1718682665105,-326.26551181,0.00022191,3]
[329804453,1718682665114,-3872.03,0.00022191,3]
[329804454,1718682665125,-794.95,0.00022191,3]
[329804455,1718682665136,-9710.9,0.00022191,3]
[329804456,1718682665147,-500.0,0.00022191,3]
[329804457,1718682665157,-1772.4,0.00022191,3]
[329804458,1718682665167,-1627.6,0.00022191,3]
[329804459,1718682665177,-1773.58,0.00022191,3]
[329804460,1718682665187,-500.0,0.00022191,3]
[329804461,1718682665196,-500.0,0.00022191,3]
[329804462,1718682665207,-500.0,0.00022191,3]
[329804463,1718682665218,-500.0,0.00022191,3]
[329804464,1718682665228,-3961.24,0.00022191,3]
[329804465,1718682665237,-500.0,0.00022191,3]
[329804466,1718682665247,-716.07,0.00022191,3]
[329804467,1718682665256,-500.0,0.00022191,3]
[329804468,1718682665265,-500.0,0.00022191,3]
[329804469,1718682665274,-2392.42,0.00022191,3]
[329804470,1718682665283,-597.79,0.00022191,3]
[329804471,1718682665294,-3060.74,0.00022191,3]
[329804472,1718682665307,-500.0,0.00022191,3]
[329804473,1718682665316,-500.0,0.00022191,3]
[329804474,1718682665326,-4956.6,0.00022191,3]
[329804475,1718682665335,-1361.07,0.00022191,3]
[329804476,1718682665346,-6046.79,0.00022191,3]
[329804477,1718682665355,-500.0,0.00022191,3]
[329804478,1718682665364,-500.0,0.00022191,3]
[329804479,1718682665375,-702.61,0.00022191,3]
[329804480,1718682665385,-6069.34,0.00022191,3]
[329804481,1718682665395,-994.27,0.00022191,3]
[329804482,1718682665404,-637.43,0.00022191,3]
[329804483,1718682665413,-500.0,0.00022191,3]
[329804484,1718682665423,-540.41712384,0.00022191,3]
[329804485,1718682665432,-626.75,0.00022191,3]
[329804486,1718682665441,-23024.27,0.00022191,3]
[329804487,1718682665451,-500.0,0.00022191,3]
[329804488,1718682665461,-151.0,0.00022191,7]
[329804489,1718682665471,-500.0,0.00022191,3]
[329804490,1718682665481,-151.0,0.00022191,7]
[329804491,1718682665490,-151.0,0.00022191,7]
[329804492,1718682665499,-265.83513,0.00022191,7]
[329804493,1718682665508,-500.0,0.00022191,3]
[329804494,1718682665518,-526.20120556,0.00022191,3]
[329804495,1718682665528,-615.95,0.00022191,3]
[329804496,1718682665537,-500.0,0.00022191,3]
[329804497,1718682665546,-500.0,0.00022191,3]
[329804498,1718682665555,-500.0,0.00022191,3]
[329804499,1718682665565,-1597.76,0.00022191,3]
[329804500,1718682665574,-1078.25,0.00022191,3]
[329804501,1718682665583,-151.0,0.00022191,7]
[329804502,1718682665593,-500.0,0.00022191,3]
[329804503,1718682665603,-153.663965,0.00022191,7]
[329804504,1718682665612,-2492.55,0.00022191,3]
[329804505,1718682665621,-1122.58,0.00022191,3]
[329804506,1718682665631,-500.0,0.00022191,3]
[329804507,1718682665641,-1781.54,0.00022191,3]
[329804508,1718682665651,-1420.79,0.00022191,3]
[329804509,1718682665660,-2490.2,0.00022191,3]
[329804510,1718682665669,-500.0,0.00022191,3]
[329804511,1718682665678,-2295.93,0.00022191,3]
[329804512,1718682665688,-818.79,0.00022191,3]
[329804513,1718682665698,-500.0,0.00022191,3]
[329804514,1718682665707,-500.0,0.00022191,3]
[329804515,1718682665719,-500.0,0.00022191,3]
[329804516,1718682665728,-1123.59,0.00022191,3]
[329804517,1718682665737,-1828.62,0.00022191,3]
[329804518,1718682665746,-500.0,0.00022191,3]
[329804519,1718682665755,-1191.73,0.00022191,3]
[329804520,1718682665765,-500.0,0.00022191,3]
[329804521,1718682665774,-540.5,0.00022191,3]
[329804522,1718682665784,-1757.94,0.00022191,3]
[329804523,1718682665793,-500.0,0.00022191,3]
[329804524,1718682665803,-500.0,0.00022191,3]
[329804525,1718682665813,-500.0,0.00022191,3]
[329804526,1718682665822,-1392.38,0.00022191,3]
[329804527,1718682665831,-1034.27,0.00022191,3]
[329804528,1718682665841,-527.73055782,0.00022191,3]
[329804529,1718682665850,-7077.28,0.00022191,3]
[329804530,1718682665859,-1192.21,0.00022191,3]
[329804531,1718682665868,-1713.03,0.00022191,3]
[329804532,1718682665878,-500.0,0.00022191,3]
[329804533,1718682665887,-547.64924658,0.00022191,3]
[329804534,1718682665897,-1990.95,0.00022191,3]
[329804535,1718682665906,-1339.88,0.00022191,3]
[329804536,1718682665916,-5406.84,0.00022191,3]
[329804537,1718682665925,-500.0,0.00022191,3]
[329804538,1718682665934,-2928.54,0.00022191,3]
[329804539,1718682665944,-553.70856704,0.00022191,3]
[329804540,1718682665953,-500.0,0.00022191,3]
[329804541,1718682665964,-602.16,0.00022191,3]
[329804542,1718682665973,-500.0,0.00022191,3]
[329804543,1718682665982,-627.75,0.00022191,3]
[329804544,1718682665992,-290.021797,0.00022191,7]
[329804545,1718682666004,-290.021797,0.00022191,7]
[329804546,1718682666015,-500.0,0.00022191,3]
[329804547,1718682666027,-290.021797,0.00022191,7]
[329804548,1718682666184,-290.021797,0.00022191,7]
[329804549,1718682666208,-290.021797,0.00022191,7]
[329804550,1718682666219,-290.021797,0.00022191,7]
[329804551,1718682666228,-290.021797,0.00022191,7]
[329804552,1718682666237,-290.021797,0.00022191,7]
[329804553,1718682666247,-740.25,0.00022191,3]
[329804554,1718682666256,-290.021797,0.00022191,7]
[329804555,1718682666266,-290.021797,0.00022191,7]
[329804556,1718682666275,-1338.09,0.00022191,3]
[329804557,1718682666284,-2917.23,0.00022191,3]
[329804558,1718682666295,-500.0,0.00022191,3]
[329804559,1718682666309,-904.31,0.00022191,3]
[329804560,1718682666319,-500.0,0.00022191,3]
[329804561,1718682666327,-500.0,0.00022191,3]
[329804562,1718682666338,-1459.47,0.00022191,3]
[329804563,1718682666347,-941.21,0.00022191,3]
[329804564,1718682666356,-7752.95,0.00022191,3]
[329804565,1718682666366,-500.0,0.00022191,3]
[329804566,1718682666376,-3111.04,0.00022191,3]
[329804567,1718682666390,-500.0,0.00022191,3]
[329804568,1718682666398,-500.0,0.00022191,3]
[329804569,1718682666408,-3427.34,0.00022191,3]
[329804570,1718682666418,-500.0,0.00022191,3]
[329804571,1718682666427,-500.0,0.00022191,3]
[329804572,1718682666436,-500.0,0.00022191,3]
[329804573,1718682666445,-500.0,0.00022191,3]
[329804574,1718682666455,-500.0,0.00022191,3]
[329804575,1718682666466,-1119.1,0.00022191,3]
[329804576,1718682666475,-500.0,0.00022191,3]
[329804577,1718682666485,-2475.34,0.00022191,3]
[329804578,1718682666495,-891.95,0.00022191,3]
[329804579,1718682666505,-282.92882639,0.00022191,3]
[329804580,1718682666515,-2243.62,0.00022191,3]
[329804581,1718682666524,-5774.79,0.00022191,3]
[329804582,1718682666534,-676.52,0.00022191,3]
[329804583,1718682666545,-500.0,0.00022191,3]
[329804584,1718682666554,-1676.41,0.00022191,3]
[329804585,1718682666565,-500.0,0.00022191,3]
[329804586,1718682666576,-500.0,0.00022191,3]
[329804587,1718682666585,-2257.54,0.00022191,3]
[329804588,1718682666596,-4877.0,0.00022191,3]
[329804589,1718682666606,-1820.32,0.00022191,3]
[329804590,1718682666616,-500.0,0.00022191,3]
[329804591,1718682666625,-500.0,0.00022191,3]
[329804592,1718682666635,-201.89027571,0.00022191,3]
[329804593,1718682666644,-500.0,0.00022191,3]
[329804594,1718682666653,-500.0,0.00022191,3]
[329804595,1718682666663,-1054.01,0.00022191,3]
[329804596,1718682666675,-151.0,0.00022191,7]
[329804597,1718682666685,-500.0,0.00022191,3]
[329804598,1718682666695,-500.0,0.00022191,3]
[329804599,1718682666706,-1262.25,0.00022191,3]
[329804600,1718682666718,-500.0,0.00022191,3]
[329804601,1718682666727,-500.0,0.00022191,3]
[329804602,1718682666736,-500.0,0.00022191,3]
[329804603,1718682666745,-2319.71,0.00022191,3]
[329804604,1718682666755,-500.0,0.00022191,3]
[329804605,1718682666765,-1137.97,0.00022191,3]
[329804606,1718682666774,-500.0,0.00022191,3]
[329804607,1718682666783,-500.0,0.00022191,3]
[329804608,1718682666793,-500.0,0.00022191,3]
[329804609,1718682666804,-500.0,0.00022191,3]
[329804610,1718682666814,-1285.09,0.00022191,3]
[329804611,1718682666823,-500.0,0.00022191,3]
[329804612,1718682666832,-500.0,0.00022191,3]
[329804613,1718682666842,-10143.93,0.00022191,3]
[329804614,1718682666851,-1328.96,0.00022191,3]
[329804615,1718682666861,-500.0,0.00022191,3]
[329804616,1718682666871,-2813.25,0.00022191,3]
[329804617,1718682666880,-500.0,0.00022191,3]
[329804618,1718682666891,-1380.45,0.00022191,3]
[329804619,1718682666901,-519.92256308,0.00022191,3]
[329804620,1718682666911,-2673.5,0.00022191,3]
[329804621,1718682666921,-534.8663062,0.00022191,3]
[329804622,1718682666930,-3014.84,0.00022191,3]
[329804623,1718682666939,-726.56,0.00022191,3]
[329804624,1718682666950,-500.0,0.00022191,3]
[329804625,1718682666959,-500.0,0.00022191,3]
[329804626,1718682666971,-500.0,0.00022191,3]
[329804627,1718682666983,-927.72,0.00022191,3]
[329804628,1718682666992,-618.23904797,0.00022191,3]
[329804629,1718682667002,-500.0,0.00022191,3]
[329804630,1718682667011,-3736.73,0.00022191,3]
[329804631,1718682667021,-5018.67,0.00022191,3]
[329804632,1718682667030,-1063.6,0.00022191,3]
[329804633,1718682667039,-500.0,0.00022191,3]
[329804634,1718682667048,-230.28,0.00022191,3]
[329804635,1718682667057,-2100.97,0.00022191,3]
[329804636,1718682667066,-500.0,0.00022191,3]
[329804637,1718682667076,-1025.33,0.00022191,3]
[329804638,1718682667086,-1315.61,0.00022191,3]
[329804639,1718682667095,-9770.64,0.00022191,3]
[329804640,1718682667105,-500.0,0.00022191,3]
[329804641,1718682667115,-3399.0,0.00022191,3]
[329804642,1718682667124,-500.0,0.00022191,3]
[329804643,1718682667133,-1290.61,0.00022191,3]
[329804644,1718682667143,-500.0,0.00022191,3]
[329804645,1718682667152,-500.0,0.00022191,3]
[329804646,1718682667161,-634.18,0.00022191,3]
[329804647,1718682667170,-2353.19,0.00022191,3]
[329804648,1718682667180,-4866.84,0.00022191,3]
[329804649,1718682667189,-1523.64,0.00022191,3]
[329804650,1718682667198,-1106.64,0.00022191,3]
[329804651,1718682667208,-500.0,0.00022191,3]
[329804652,1718682667221,-792.43,0.00022191,3]
[329804653,1718682667230,-500.0,0.00022191,3]
[329804654,1718682667239,-500.0,0.00022191,3]
[329804655,1718682667249,-3119.89,0.00022191,3]
[329804656,1718682667259,-4312.81,0.00022191,3]
[329804657,1718682667268,-3474.59,0.00022191,3]
[329804658,1718682667277,-500.0,0.00022191,3]
[329804659,1718682667287,-1067.63,0.00022191,3]
[329804660,1718682667304,-500.0,0.00022191,3]
[329804661,1718682667313,-999.92,0.00022191,3]
[329804662,1718682667322,-500.0,0.00022191,3]
[329804663,1718682667332,-500.0,0.00022191,3]
[329804664,1718682667343,-500.0,0.00022191,3]
[329804665,1718682667353,-2354.82,0.00022191,3]
[329804666,1718682667362,-984.15,0.00022191,3]
[329804667,1718682667372,-3829.63,0.00022191,3]
[329804668,1718682667381,-1938.31,0.00022191,3]
[329804669,1718682667391,-2382.92,0.00022191,3]
[329804670,1718682667400,-500.0,0.00022191,3]
[329804671,1718682667409,-500.0,0.00022191,3]
[329804672,1718682667419,-4802.61,0.00022191,3]
[329804673,1718682667428,-207.04281062,0.00022191,3]
[329804674,1718682667437,-723.34,0.00022191,3]
[329804675,1718682667447,-914.8,0.00022191,3]
[329804676,1718682667456,-4638.23,0.00022191,3]
[329804677,1718682667469,-2310.84,0.00022191,3]
[329804678,1718682667478,-500.0,0.00022191,3]
[329804679,1718682667487,-1712.32,0.00022191,3]
[329804680,1718682667496,-500.0,0.00022191,3]
[329804681,1718682667505,-500.0,0.00022191,3]
[329804682,1718682667514,-7408.89,0.00022191,3]
[329804683,1718682667523,-500.0,0.00022191,3]
[329804684,1718682667532,-151.0,0.00022191,7]
[329804685,1718682667542,-2735.76,0.00022191,3]
[329804686,1718682667552,-500.0,0.00022191,3]
[329804687,1718682667561,-254.97397431,0.00022191,3]
[329804688,1718682667571,-500.0,0.00022191,3]
[329804689,1718682667580,-500.0,0.00022191,3]
[329804690,1718682667589,-2484.9,0.00022191,3]
[329804691,1718682667598,-500.0,0.00022191,3]
[329804692,1718682667607,-540.50671121,0.00022191,3]
[329804693,1718682667617,-1852.65,0.00022191,3]
[329804694,1718682667627,-4265.3,0.00022191,3]
[329804695,1718682667637,-2346.11,0.00022191,3]
[329804696,1718682667647,-852.69,0.00022191,3]
[329804697,1718682667656,-1031.71,0.00022191,3]
[329804698,1718682667665,-2394.26,0.00022191,3]
[329804699,1718682667675,-2140.97,0.00022191,3]
[329804700,1718682667686,-500.0,0.00022191,3]
[329804701,1718682667696,-500.0,0.00022191,3]
[329804702,1718682667705,-2402.2,0.00022191,3]
[329804703,1718682667717,-500.0,0.00022191,3]
[329804704,1718682667726,-500.0,0.00022191,3]
[329804705,1718682667735,-912.12,0.00022191,3]
[329804706,1718682667744,-500.0,0.00022191,3]
[329804707,1718682667754,-500.0,0.00022191,3]
[329804708,1718682667764,-4422.65,0.00022191,3]
[329804709,1718682667773,-1203.74,0.00022191,3]
[329804710,1718682667782,-500.0,0.00022191,3]
[329804711,1718682667792,-1401.62,0.00022191,3]
[329804712,1718682667801,-610.61,0.00022191,3]
[329804713,1718682667811,-1976.11,0.00022191,3]
[329804714,1718682667820,-500.0,0.00022191,3]
[329804715,1718682667829,-1181.96,0.00022191,3]
[329804716,1718682667839,-571.09,0.00022191,3]
[329804717,1718682667848,-2850.11,0.00022191,3]
[329804718,1718682667857,-4422.59,0.00022191,3]
[329804719,1718682667866,-827.39,0.00022191,3]
[329804720,1718682667875,-1913.02,0.00022191,3]
[329804721,1718682667884,-500.0,0.00022191,3]
[329804722,1718682667893,-12979.46,0.00022191,3]
[329804723,1718682667903,-500.0,0.00022191,3]